fUSD/lending_fUSD_20250103
["ID","MTS","AMOUNT","RATE_DAILY","PERIOD"]
[347554127,1735915833542,-579.14,8.976e-05,2]
[347554128,1735915833552,-500.0,8.976e-05,2]
[347554129,1735915833563,-500.0,8.976e-05,2]
[347554130,1735915833573,-500.0,8.976e-05,2]
[347554131,1735915833584,-290.88887996,8.976e-05,7]
[347554132,1735915833594,-500.0,8.976e-05,2]
[347554133,1735915833605,-558.62,8.976e-05,2]
[347554134,1735915833615,-500.0,8.976e-05,2]
[347554135,1735915833625,-728.47,8.976e-05,2]
[347554136,1735915833636,-500.0,8.976e-05,2]
[347554137,1735915833647,-500.0,8.976e-05,2]
[347554138,1735915833657,-500.0,8.976e-05,2]
[347554139,1735915833667,-629.65,8.976e-05,2]
[347554140,1735915833678,-348.84181313,8.976e-05,2]
[347554141,1735915833688,-641.92,8.976e-05,2]
[347554142,1735915833698,-500.0,8.976e-05,2]
[347554143,1735915833710,-500.0,8.976e-05,2]
[347554144,1735915833720,-500.0,8.976e-05,2]
[347554145,1735915833730,-500.0,8.976e-05,2]
[347554146,1735915833741,-500.0,8.976e-05,2]
[347554147,1735915833751,-500.0,8.976e-05,2]
[347554148,1735915833761,-500.0,8.976e-05,2]
[347554149,1735915833771,-787.42,8.976e-05,2]
[347554150,1735915833782,-500.0,8.976e-05,2]
[347554151,1735915833792,-500.0,8.976e-05,2]
[347554152,1735915833802,-500.0,8.976e-05,2]
[347554153,1735915833811,-500.0,8.976e-05,2]
[347554154,1735915833821,-500.0,8.976e-05,2]
[347554155,1735915833831,-765.02,8.976e-05,2]
[347554156,1735915833841,-500.0,8.976e-05,2]
[347554157,1735915833851,-500.0,8.976e-05,2]
[347554158,1735915833860,-562.23,8.976e-05,2]
[347554159,1735915833871,-500.0,8.976e-05,2]
[347554160,1735915833881,-500.0,8.976e-05,2]
[347554161,1735915833891,-500.0,8.976e-05,2]
[347554162,1735915833901,-500.0,8.976e-05,2]
[347554163,1735915833911,-500.0,8.976e-05,2]
[347554164,1735915833921,-586.18,8.976e-05,2]
[347554165,1735915833931,-613.89,8.976e-05,2]
[347554166,1735915833940,-500.0,8.976e-05,2]
[347554167,1735915833950,-280.14639486,8.976e-05,2]
[347554168,1735915833962,-500.0,8.976e-05,2]
[347554169,1735915833971,-620.79,8.976e-05,2]
[347554170,1735915833981,-500.0,8.976e-05,2]
[347554171,1735915833991,-193.15229098,8.976e-05,2]
[347554172,1735915834001,-500.0,8.976e-05,2]
[347554173,1735915834011,-500.0,8.976e-05,2]
[347554174,1735915834022,-500.0,8.976e-05,2]
[347554175,1735915834032,-512.46,8.976e-05,2]
[347554176,1735915834043,-500.0,8.976e-05,2]
[347554177,1735915834053,-600.11322654,8.976e-05,2]
[347554178,1735915834063,-647.28,8.976e-05,2]
[347554179,1735915834073,-500.0,8.976e-05,2]
[347554180,1735915834083,-500.0,8.976e-05,2]
[347554181,1735915834095,-500.93,8.976e-05,2]
[347554182,1735915834105,-500.0,8.976e-05,2]
[347554183,1735915834116,-500.0,8.976e-05,2]
[347554184,1735915834127,-798.61,8.976e-05,2]
[347554185,1735915834137,-500.0,8.976e-05,2]
[347554186,1735915834147,-240.70845442,8.976e-05,2]
[347554187,1735915834162,-259.29154558,8.976e-05,2]
[347554188,1735915834173,-500.0,8.976e-05,2]
[347554189,1735915834184,-500.0,8.976e-05,2]
[347554190,1735915834194,-500.0,8.976e-05,2]
[347554191,1735915834203,-500.0,8.976e-05,2]
[347554192,1735915834214,-500.0,8.976e-05,2]
[347554193,1735915834224,-500.0,8.976e-05,2]
[347554194,1735915834234,-500.0,8.976e-05,2]
[347554195,1735915834243,-507.89,8.976e-05,2]
[347554196,1735915834253,-500.0,8.976e-05,2]
[347554197,1735915834263,-500.0,8.976e-05,2]
[347554198,1735915834273,-556.5,8.976e-05,2]
[347554199,1735915834283,-500.0,8.976e-05,2]
[347554200,1735915834293,-500.0,8.976e-05,2]
[347554201,1735915834303,-500.0,8.976e-05,2]
[347554202,1735915834312,-577.53,8.976e-05,2]
[347554203,1735915834322,-500.0,8.976e-05,2]
[347554204,1735915834332,-532.22,8.976e-05,2]
[347554205,1735915834342,-625.15,8.976e-05,2]
[347554206,1735915834352,-500.0,8.976e-05,2]
[347554207,1735915834368,-750.61,8.976e-05,2]
[347554208,1735915834379,-500.0,8.976e-05,2]
[347554209,1735915834389,-500.0,8.976e-05,2]
[347554210,1735915834399,-500.0,8.976e-05,2]
[347554211,1735915834408,-554.97,8.976e-05,2]
[347554212,1735915834419,-675.88,8.976e-05,2]
[347554213,1735915834429,-543.6,8.976e-05,2]
[347554214,1735915834439,-500.0,8.976e-05,2]
[347554215,1735915834448,-500.0,8.976e-05,2]
[347554216,1735915834459,-1098.15,8.976e-05,2]
[347554217,1735915834469,-500.0,8.976e-05,2]
[347554218,1735915834479,-893.28,8.976e-05,2]
[347554219,1735915834489,-500.0,8.976e-05,2]
[347554220,1735915834498,-500.0,8.976e-05,2]
[347554221,1735915834508,-500.0,8.976e-05,2]
[347554222,1735915834518,-500.0,8.976e-05,2]
[347554223,1735915834527,-539.39,8.976e-05,2]
[347554224,1735915834537,-500.0,8.976e-05,2]
[347554225,1735915834547,-500.0,8.976e-05,2]
[347554226,1735915834557,-603.7,8.976e-05,2]
[347554227,1735915834566,-500.0,8.976e-05,2]
[347554228,1735915834575,-514.15,8.976e-05,2]
[347554229,1735915834585,-500.0,8.976e-05,2]
[347554230,1735915834594,-500.0,8.976e-05,2]
[347554231,1735915834604,-557.66,8.976e-05,2]
[347554232,1735915834614,-733.1,8.976e-05,2]
[347554233,1735915834623,-523.04,8.976e-05,2]
[347554234,1735915834632,-500.0,8.976e-05,2]
[347554235,1735915834641,-500.0,8.976e-05,2]
[347554236,1735915834650,-500.0,8.976e-05,2]
[347554237,1735915834659,-500.0,8.976e-05,2]
[347554238,1735915834669,-500.0,8.976e-05,2]
[347554239,1735915834678,-500.0,8.977e-05,2]
[347554240,1735915834687,-809.67,8.977e-05,2]
[347554241,1735915834697,-4448.09,8.977e-05,2]
[347554242,1735915834708,-1242.14,8.977e-05,2]
[347554243,1735915834717,-1385.67,8.977e-05,2]
[347554244,1735915834727,-3009.37,8.977e-05,2]
[347554245,1735915834736,-5042.44,8.977e-05,2]
[347554246,1735915834747,-500.0,8.977e-05,2]
[347554247,1735915834757,-2116.1,8.977e-05,2]
[347554248,1735915834766,-1153.47,8.977e-05,2]
[347554249,1735915834776,-500.0,8.977e-05,2]
[347554250,1735915834786,-3278.86,8.977e-05,2]
[347554251,1735915834795,-738.52,8.977e-05,2]
[347554252,1735915834804,-1912.52,8.977e-05,2]
[347554253,1735915834814,-1012.16,8.977e-05,2]
[347554254,1735915834823,-1062.93,8.977e-05,2]
[347554255,1735915834832,-1842.98,8.977e-05,2]
[347554256,1735915834841,-2490.76,8.977e-05,2]
[347554257,1735915834850,-2413.1,8.977e-05,2]
[347554258,1735915834860,-1022.51,8.977e-05,2]
[347554259,1735915834869,-560.82,8.977e-05,2]
[347554260,1735915834879,-1677.97,8.977e-05,2]
[347554261,1735915834888,-4928.58,8.977e-05,2]
[347554262,1735915834897,-3215.39,8.977e-05,2]
[347554263,1735915834907,-1087.28,8.977e-05,2]
[347554264,1735915834916,-1771.61,8.977e-05,2]
[347554265,1735915834925,-3605.09,8.977e-05,2]
[347554266,1735915834935,-1064.49,8.977e-05,2]
[347554267,1735915834944,-1956.07,8.977e-05,2]
[347554268,1735915834953,-1002.75,8.977e-05,2]
[347554269,1735915834963,-838.21,8.977e-05,2]
[347554270,1735915834972,-200.0,9e-05,3]
[347554271,1735915834982,-420.0,9.008e-05,2]
[347554272,1735915834991,-5000.0,9.05e-05,2]
[347554273,1735915835000,-299.153,9.1e-05,2]
[347554274,1735915835010,-500.0,9.147e-05,2]
[347554275,1735915835019,-949.79605367,9.147e-05,2]
[347554276,1735915835031,-787.90394633,9.147e-05,2]
[347554277,1735915835041,-2087.96,9.147e-05,2]
[347554278,1735915835051,-1119.59,9.147e-05,2]
[347554279,1735915835060,-1840.15,9.147e-05,2]
[347554280,1735915835070,-500.0,9.147e-05,2]
[347554281,1735915835079,-2700.66,9.147e-05,2]
[347554282,1735915835091,-500.0,9.147e-05,2]
[347554283,1735915835100,-500.0,9.147e-05,2]
[347554284,1735915835109,-741.08,9.147e-05,2]
[347554285,1735915835119,-686.6,9.147e-05,2]
[347554286,1735915835128,-670.31,9.147e-05,2]
[347554287,1735915835138,-500.0,9.147e-05,2]
[347554288,1735915835148,-500.0,9.147e-05,2]
[347554289,1735915835157,-500.0,9.147e-05,2]
[347554290,1735915835168,-500.0,9.148e-05,2]
[347554291,1735915835179,-500.0,9.148e-05,2]
[347554292,1735915835188,-500.0,9.148e-05,2]
[347554293,1735915835198,-500.0,9.148e-05,2]
[347554294,1735915835208,-500.0,9.148e-05,2]
[347554295,1735915835218,-500.0,9.148e-05,2]
[347554296,1735915835227,-500.0,9.148e-05,2]
[347554297,1735915835236,-500.0,9.148e-05,2]
[347554298,1735915835245,-500.0,9.148e-05,2]
[347554299,1735915835255,-500.0,9.148e-05,2]
[347554300,1735915835265,-500.0,9.148e-05,2]
[347554301,1735915835274,-500.0,9.148e-05,2]
[347554302,1735915835284,-500.0,9.148e-05,2]
[347554303,1735915835293,-500.0,9.148e-05,2]
[347554304,1735915835302,-500.0,9.148e-05,2]
[347554305,1735915835312,-500.0,9.148e-05,2]
[347554306,1735915835322,-500.0,9.148e-05,2]
[347554307,1735915835332,-500.0,9.148e-05,2]
[347554308,1735915835341,-521.02,9.148e-05,2]
[347554309,1735915835350,-500.0,9.148e-05,2]
[347554310,1735915835360,-500.0,9.148e-05,2]
[347554311,1735915835369,-500.0,9.148e-05,2]
[347554312,1735915835379,-500.0,9.148e-05,2]
[347554313,1735915835388,-500.0,9.148e-05,2]
[347554314,1735915835398,-500.0,9.148e-05,2]
[347554315,1735915835407,-500.0,9.148e-05,2]
[347554316,1735915835417,-500.0,9.148e-05,2]
[347554317,1735915835426,-500.0,9.148e-05,2]
[347554318,1735915835437,-500.0,9.148e-05,2]
[347554319,1735915835446,-2264.72,9.148e-05,2]
[347554320,1735915835458,-500.0,9.148e-05,2]
[347554321,1735915835468,-500.0,9.148e-05,2]
[347554322,1735915835477,-500.0,9.148e-05,2]
[347554323,1735915835487,-501.73,9.148e-05,2]
[347554324,1735915835496,-500.0,9.148e-05,2]
[347554325,1735915835506,-2027.49,9.148e-05,2]
[347554326,1735915835516,-500.0,9.148e-05,2]
[347554327,1735915835525,-1089.39,9.148e-05,2]
[347554328,1735915835535,-500.0,9.148e-05,2]
[347554329,1735915835544,-500.0,9.148e-05,2]
[347554330,1735915835554,-500.0,9.148e-05,2]
[347554331,1735915835563,-1487.2,9.148e-05,2]
[347554332,1735915835573,-500.0,9.148e-05,2]
[347554333,1735915835583,-547.0,9.148e-05,2]
[347554334,1735915835592,-600.62,9.148e-05,2]
[347554335,1735915835602,-500.0,9.148e-05,2]
[347554336,1735915835611,-608.02,9.148e-05,2]
[347554337,1735915835620,-500.0,9.148e-05,2]
[347554338,1735915835630,-500.0,9.148e-05,2]
[347554339,1735915835640,-500.0,9.148e-05,2]
[347554340,1735915835649,-500.0,9.148e-05,2]
[347554341,1735915835659,-586.6,9.148e-05,2]
[347554342,1735915835668,-500.0,9.148e-05,2]
[347554343,1735915835678,-500.0,9.148e-05,2]
[347554344,1735915835687,-500.0,9.148e-05,2]
[347554345,1735915835697,-500.0,9.148e-05,2]
[347554346,1735915835707,-1201.25,9.148e-05,2]
[347554347,1735915835717,-500.0,9.148e-05,2]
[347554348,1735915835727,-500.0,9.148e-05,2]
[347554349,1735915835736,-500.0,9.148e-05,2]
[347554350,1735915835745,-500.0,9.148e-05,2]
[347554351,1735915835755,-500.0,9.148e-05,2]
[347554352,1735915835765,-2194.37,9.148e-05,2]
[347554353,1735915835775,-500.0,9.148e-05,2]
[347554354,1735915835784,-874.35,9.148e-05,2]
[347554355,1735915835794,-491.49396316,9.148e-05,2]
[347554356,1735915835803,-500.0,9.148e-05,2]
[347554357,1735915835813,-500.0,9.148e-05,2]
[347554358,1735915835822,-500.0,9.148e-05,2]
[347554359,1735915835831,-500.0,9.148e-05,2]
[347554360,1735915835840,-1613.42,9.148e-05,2]
[347554361,1735915835850,-820.18,9.149e-05,2]
[347554362,1735915835859,-645.68,9.149e-05,2]
[347554363,1735915835869,-507.77,9.149e-05,2]
[347554364,1735915835879,-1494.05,9.149e-05,2]
[347554365,1735915835889,-540.73,9.149e-05,2]
[347554366,1735915835899,-500.0,9.149e-05,2]
[347554367,1735915835909,-500.0,9.149e-05,2]
[347554368,1735915835918,-744.11,9.149e-05,2]
[347554369,1735915835928,-538.79,9.149e-05,2]
[347554370,1735915835938,-627.83,9.149e-05,2]
[347554371,1735915835947,-500.0,9.149e-05,2]
[347554372,1735915835957,-568.5,9.149e-05,2]
[347554373,1735915835967,-500.0,9.149e-05,2]
[347554374,1735915835976,-802.9,9.149e-05,2]
[347554375,1735915835985,-500.0,9.149e-05,2]
[347554376,1735915835995,-500.0,9.149e-05,2]
[347554377,1735915836005,-500.0,9.149e-05,2]
[347554378,1735915836014,-500.0,9.149e-05,2]
[347554379,1735915836023,-691.99,9.149e-05,2]
[347554380,1735915836033,-534.78,9.149e-05,2]
[347554381,1735915836240,-500.0,9.149e-05,2]
[347554382,1735915836291,-1069.01,9.149e-05,2]
[347554383,1735915836302,-733.7,9.149e-05,2]
[347554384,1735915836311,-591.13,9.149e-05,2]
[347554385,1735915836321,-500.0,9.149e-05,2]
[347554386,1735915836330,-500.0,9.149e-05,2]
[347554387,1735915836340,-3125.26,9.149e-05,2]
[347554388,1735915836350,-508.97,9.149e-05,2]
[347554389,1735915836360,-500.0,9.149e-05,2]
[347554390,1735915836369,-500.0,9.149e-05,2]
[347554391,1735915836379,-1560.07,9.149e-05,2]
[347554392,1735915836388,-622.64,9.149e-05,2]
[347554393,1735915836398,-500.0,9.149e-05,2]
[347554394,1735915836408,-500.0,9.149e-05,2]
[347554395,1735915836418,-500.0,9.149e-05,2]
[347554396,1735915836428,-500.0,9.149e-05,2]
[347554397,1735915836437,-500.0,9.149e-05,2]
[347554398,1735915836447,-500.0,9.149e-05,2]
[347554399,1735915836457,-964.68,9.149e-05,2]
[347554400,1735915836467,-618.26,9.149e-05,2]
[347554401,1735915836477,-500.0,9.149e-05,2]
[347554402,1735915836489,-656.69,9.149e-05,2]
[347554403,1735915836498,-500.0,9.149e-05,2]
[347554404,1735915836508,-2222.475864,9.149e-05,2]
[347554405,1735915836517,-500.0,9.149e-05,2]
[347554406,1735915836527,-500.0,9.149e-05,2]
[347554407,1735915836536,-153.754164,9.149e-05,2]
[347554408,1735915836546,-500.0,9.149e-05,2]
[347554409,1735915836555,-155.826197,9.149e-05,2]
[347554410,1735915836565,-500.0,9.149e-05,2]
[347554411,1735915836574,-1130.16,9.149e-05,2]
[347554412,1735915836583,-500.0,9.149e-05,2]
[347554413,1735915836592,-500.0,9.149e-05,2]
[347554414,1735915836602,-3237.86,9.149e-05,2]
[347554415,1735915836611,-2327.996641,9.149e-05,2]
[347554416,1735915836620,-681.5,9.149e-05,2]
[347554417,1735915836630,-500.0,9.149e-05,2]
[347554418,1735915836640,-563.0,9.149e-05,2]
[347554419,1735915836649,-1275.35,9.149e-05,2]
[347554420,1735915836659,-500.0,9.149e-05,2]
[347554421,1735915836668,-500.0,9.149e-05,2]
[347554422,1735915836678,-500.0,9.149e-05,2]
[347554423,1735915836688,-500.0,9.149e-05,2]
[347554424,1735915836697,-732.31,9.149e-05,2]
[347554425,1735915836706,-597.28,9.149e-05,2]
[347554426,1735915836716,-500.0,9.149e-05,2]
[347554427,1735915836725,-500.0,9.149e-05,2]
[347554428,1735915836735,-500.0,9.149e-05,2]
[347554429,1735915836744,-1052.43,9.149e-05,2]
[347554430,1735915836754,-500.0,9.149e-05,2]
[347554431,1735915836763,-500.0,9.149e-05,2]
[347554432,1735915836772,-753.84,9.149e-05,2]
[347554433,1735915836781,-500.0,9.149e-05,2]
[347554434,1735915836791,-500.0,9.149e-05,2]
[347554435,1735915836800,-1302.1,9.149e-05,2]
[347554436,1735915836810,-500.0,9.149e-05,2]
[347554437,1735915836820,-684.02,9.149e-05,2]
[347554438,1735915836829,-3005.09,9.149e-05,2]
[347554439,1735915836839,-500.0,9.149e-05,2]
[347554440,1735915836848,-500.0,9.149e-05,2]
[347554441,1735915836857,-528.59,9.149e-05,2]
[347554442,1735915836867,-1094.62,9.149e-05,2]
[347554443,1735915836876,-752.73,9.149e-05,2]
[347554444,1735915836886,-500.0,9.149e-05,2]
[347554445,1735915836895,-513.1,9.149e-05,2]
[347554446,1735915836904,-500.0,9.149e-05,2]
[347554447,1735915836914,-526.2,9.149e-05,2]
[347554448,1735915836923,-578.25,9.149e-05,2]
[347554449,1735915836932,-814.28,9.149e-05,2]
[347554450,1735915836942,-500.0,9.149e-05,2]
[347554451,1735915836951,-729.43,9.149e-05,2]
[347554452,1735915836963,-500.0,9.149e-05,2]
[347554453,1735915836972,-1565.1,9.149e-05,2]
[347554454,1735915836981,-884.7,9.149e-05,2]
[347554455,1735915836991,-500.0,9.149e-05,2]
[347554456,1735915837000,-1442.45,9.149e-05,2]
[347554457,1735915837010,-3467.57,9.149e-05,2]
[347554458,1735915837019,-650.25,9.149e-05,2]
[347554459,1735915837028,-596.58,9.149e-05,2]
[347554460,1735915837037,-502.46,9.149e-05,2]
[347554461,1735915837047,-1999.27,9.149e-05,2]
[347554462,1735915837057,-503.81,9.149e-05,2]
[347554463,1735915837066,-529.16,9.149e-05,2]
[347554464,1735915837076,-500.0,9.149e-05,2]
[347554465,1735915837086,-500.0,9.149e-05,2]
[347554466,1735915837098,-3318.34,9.149e-05,2]
[347554467,1735915837108,-500.0,9.149e-05,2]
[347554468,1735915837118,-789.57,9.149e-05,2]
[347554469,1735915837127,-520.54,9.149e-05,2]
[347554470,1735915837139,-500.0,9.149e-05,2]
[347554471,1735915837149,-500.0,9.15e-05,2]
[347554472,1735915837161,-500.0,9.15e-05,2]
[347554473,1735915837174,-500.0,9.15e-05,2]
[347554474,1735915837184,-992.36,9.15e-05,2]
[347554475,1735915837194,-500.0,9.15e-05,2]
[347554476,1735915837204,-552.99,9.15e-05,2]
[347554477,1735915837215,-1102.47,9.15e-05,2]
[347554478,1735915837224,-500.0,9.15e-05,2]
[347554479,1735915837234,-868.46,9.15e-05,2]
[347554480,1735915837243,-500.0,9.15e-05,2]
[347554481,1735915837254,-585.01,9.15e-05,2]
[347554482,1735915837263,-1050.01,9.15e-05,2]
[347554483,1735915837272,-551.2,9.15e-05,2]
[347554484,1735915837282,-500.0,9.15e-05,2]
[347554485,1735915837291,-500.0,9.15e-05,2]
[347554486,1735915837301,-500.0,9.15e-05,2]
[347554487,1735915837310,-1525.87,9.15e-05,2]
[347554488,1735915837320,-579.32,9.15e-05,2]
[347554489,1735915837329,-1095.84,9.15e-05,2]
[347554490,1735915837339,-500.0,9.15e-05,2]
[347554491,1735915837348,-500.0,9.15e-05,2]
[347554492,1735915837358,-500.0,9.15e-05,2]
[347554493,1735915837367,-676.02,9.15e-05,2]
[347554494,1735915837377,-500.0,9.15e-05,2]
[347554495,1735915837387,-500.0,9.15e-05,2]
[347554496,1735915837396,-829.08,9.15e-05,2]
[347554497,1735915837407,-900.0,9.15e-05,2]
[347554498,1735915837417,-92061.9444663,9.15e-05,2]
[347554499,1735915837837,-111969.70247616,9.15e-05,2]
[347554500,1735915837849,-6708.55434595,9.15e-05,2]
[347554501,1735915837957,-19905.04019583,9.15e-05,2]
[347554502,1735915838004,-876.33,9.15e-05,2]
[347554503,1735915838016,-887.80834405,9.15e-05,2]
[347554504,1735915838056,-35953.12051843,9.15e-05,2]
[347554505,1735915838068,-5112.43018021,9.15e-05,2]
[347554506,1735915838080,-62097.36487307,9.15e-05,2]
[347554507,1735915838091,-150.0,9.197e-05,2]
[347554508,1735915838101,-150.0,9.197e-05,2]
[347554509,1735915838111,-150.0,9.197e-05,2]
[347554510,1735915838120,-3640.85,9.249e-05,2]
[347554511,1735915838131,-586.18,9.249e-05,2]
[347554512,1735915838140,-500.0,9.249e-05,2]
[347554513,1735915838151,-757.98,9.249e-05,2]
[347554514,1735915838160,-500.0,9.25e-05,2]
[347554515,1735915838172,-695.23,9.25e-05,2]
[347554516,1735915838182,-534.98,9.25e-05,2]
[347554517,1735915838192,-500.0,9.25e-05,2]
[347554518,1735915838202,-500.0,9.25e-05,2]
[347554519,1735915838214,-500.0,9.25e-05,2]
[347554520,1735915838224,-513.03,9.25e-05,2]
[347554521,1735915838235,-500.0,9.25e-05,2]
[347554523,1735915838245,-500.0,9.25e-05,2]
[347554525,1735915838257,-500.0,9.25e-05,2]
[347554527,1735915838267,-502.82,9.25e-05,2]
[347554528,1735915838277,-274.35321894,9.25e-05,2]
[347554529,1735915838288,-500.0,9.25e-05,2]
[347554530,1735915838297,-500.0,9.25e-05,2]
[347554531,1735915838307,-500.0,9.25e-05,2]
[347554532,1735915838316,-500.0,9.25e-05,2]
[347554533,1735915838326,-500.0,9.25e-05,2]
[347554534,1735915838336,-500.0,9.25e-05,2]
[347554535,1735915838345,-500.0,9.25e-05,2]
[347554536,1735915838355,-500.0,9.25e-05,2]
[347554537,1735915838365,-500.0,9.25e-05,2]
[347554538,1735915838375,-500.0,9.25e-05,2]
[347554539,1735915838385,-500.0,9.25e-05,2]
[347554540,1735915838395,-500.0,9.25e-05,2]
[347554541,1735915838405,-500.0,9.25e-05,2]
[347554542,1735915838414,-500.0,9.25e-05,2]
[347554543,1735915838424,-581.17,9.25e-05,2]
[347554544,1735915838434,-500.0,9.25e-05,2]
[347554545,1735915838445,-500.0,9.25e-05,2]
[347554546,1735915838455,-580.58,9.25e-05,2]
[347554547,1735915838467,-500.0,9.25e-05,2]
[347554548,1735915838477,-500.0,9.25e-05,2]
[347554549,1735915838556,-500.0,9.25e-05,2]
[347554550,1735915838567,-530.0,9.25e-05,2]
[347554551,1735915838577,-500.0,9.25e-05,2]
[347554552,1735915838586,-194.7,9.25e-05,2]
[347554553,1735915838596,-500.0,9.25e-05,2]
[347554554,1735915838605,-500.0,9.25e-05,2]
[347554555,1735915838615,-311.43480326,9.25e-05,2]
[347554556,1735915838624,-170.24,9.25e-05,2]
[347554557,1735915838634,-500.0,9.25e-05,2]
[347554558,1735915838643,-1332.3,9.25e-05,2]
[347554559,1735915838652,-500.0,9.25e-05,2]
[347554560,1735915838662,-500.0,9.25e-05,2]
[347554561,1735915838672,-500.0,9.25e-05,2]
[347554562,1735915838681,-500.0,9.25e-05,2]
[347554563,1735915838691,-500.0,9.25e-05,2]
[347554564,1735915838700,-804.31,9.25e-05,2]
[347554565,1735915838712,-500.0,9.25e-05,2]
[347554566,1735915838721,-500.0,9.25e-05,2]
[347554567,1735915838730,-654.44,9.25e-05,2]
[347554568,1735915838740,-500.0,9.25e-05,2]
[347554569,1735915838750,-500.0,9.25e-05,2]
[347554570,1735915838759,-500.0,9.25e-05,2]
[347554571,1735915838768,-500.0,9.25e-05,2]
[347554572,1735915838778,-569.46,9.25e-05,2]
[347554573,1735915838787,-634.03,9.25e-05,2]
[347554574,1735915838796,-500.0,9.25e-05,2]
[347554575,1735915838806,-500.0,9.25e-05,2]
[347554576,1735915838816,-500.0,9.25e-05,2]
[347554577,1735915838826,-556.75598228,9.25e-05,2]
[347554578,1735915838835,-500.0,9.25e-05,2]
[347554579,1735915838845,-588.44,9.25e-05,2]
[347554580,1735915838855,-500.0,9.25e-05,2]
[347554581,1735915838864,-500.0,9.25e-05,2]
[347554582,1735915838873,-500.0,9.25e-05,2]
[347554583,1735915838883,-500.0,9.25e-05,2]
[347554584,1735915838892,-500.0,9.25e-05,2]
[347554585,1735915838901,-500.0,9.25e-05,2]
[347554586,1735915838911,-500.0,9.25e-05,2]
[347554587,1735915838919,-500.0,9.25e-05,2]
[347554588,1735915838928,-579.14,9.25e-05,2]
[347554589,1735915838938,-500.0,9.25e-05,2]
[347554590,1735915838947,-500.0,9.25e-05,2]
[347554591,1735915838958,-500.0,9.25e-05,2]
[347554592,1735915838967,-558.62,9.25e-05,2]
[347554593,1735915838976,-500.0,9.25e-05,2]
[347554594,1735915838986,-728.47,9.25e-05,2]
[347554595,1735915838996,-500.0,9.25e-05,2]
[347554596,1735915839005,-500.0,9.25e-05,2]
[347554597,1735915839015,-500.0,9.25e-05,2]
[347554598,1735915839024,-629.65,9.25e-05,2]
[347554599,1735915839034,-641.92,9.25e-05,2]
[347554600,1735915839043,-500.0,9.25e-05,2]
[347554601,1735915839053,-500.0,9.25e-05,2]
[347554602,1735915839062,-473.08399881,9.25e-05,2]
[347554603,1735915839072,-500.0,9.25e-05,2]
[347554604,1735915839081,-500.0,9.25e-05,2]
[347554605,1735915839093,-500.0,9.25e-05,2]
[347554606,1735915839102,-500.0,9.25e-05,2]
[347554607,1735915839112,-787.42,9.25e-05,2]
[347554608,1735915839120,-500.0,9.25e-05,2]
[347554609,1735915839131,-500.0,9.25e-05,2]
[347554610,1735915839140,-500.0,9.25e-05,2]
[347554611,1735915839149,-500.0,9.25e-05,2]
[347554612,1735915839158,-500.0,9.25e-05,2]
[347554613,1735915839169,-765.02,9.25e-05,2]
[347554614,1735915839179,-500.0,9.25e-05,2]
[347554615,1735915839188,-500.0,9.25e-05,2]
[347554616,1735915839197,-562.23,9.25e-05,2]
[347554617,1735915839206,-500.0,9.25e-05,2]
[347554618,1735915839215,-500.0,9.25e-05,2]
[347554619,1735915839225,-500.0,9.25e-05,2]
[347554620,1735915839235,-500.0,9.25e-05,2]
[347554621,1735915839244,-500.0,9.25e-05,2]
[347554622,1735915839254,-586.18,9.25e-05,2]
[347554623,1735915839263,-613.89,9.25e-05,2]
[347554624,1735915839273,-500.0,9.25e-05,2]
[347554625,1735915839282,-500.0,9.25e-05,2]
[347554626,1735915839291,-620.79,9.25e-05,2]
[347554627,1735915839300,-500.0,9.25e-05,2]
[347554628,1735915839309,-500.0,9.25e-05,2]
[347554629,1735915839318,-500.0,9.25e-05,2]